bitfinex/quotes_ETHUSD_20250508
["timestamp","ask_amount","ask_price","bid_price","bid_amount"]
[1746702834716,5.11316373,1955.8,1955.5,3.0]
[1746702834881,5.11290931,1955.9,1955.6,1.72313984]
[1746702835081,5.11290931,1955.9,1955.8,1.72313984]
[1746702836113,5.11319684,1955.8,1955.6,1.72313984]
[1746702836316,5.11325867,1955.7,1955.6,1.72313984]
[1746702839691,5.11352014,1955.6,1955.5,1.72313984]
[1746702839899,5.11334481,1955.7,1955.5,1.72313984]
[1746702840197,5.11334481,1955.7,1955.6,1.72313984]
[1746702841422,5.11334481,1955.7,1955.6,1.91342594]
[1746702841632,5.11317819,1955.8,1955.6,1.91342594]
[1746702841824,5.11325867,1955.7,1955.6,1.91342594]
[1746702843725,6.13590236,1955.7,1955.6,1.91342594]
[1746702843940,6.96190236,1955.7,1955.6,0.1902861]
[1746702844335,5.11404316,1955.4,1955.3,1.72313984]
[1746702844638,5.11404316,1955.4,1955.2,3.0]
[1746702844639,5.11430471,1955.3,1955.2,1.72313984]
[1746702844845,5.11482788,1955.1,1955.0,2.92907127]
[1746702845145,5.11482788,1955.1,1955.0,5.92907127]
[1746702846041,5.11482788,1955.1,1955.0,5.53803984]
[1746702846708,5.11467087,1955.2,1955.0,4.72313984]
[1746702846709,5.11474551,1955.2,1955.0,4.72313984]
[1746702846910,5.11390685,1955.5,1955.2,0.833]
[1746702847109,5.11355712,1955.6,1955.4,1.72313984]
[1746702847344,12.17001733,1955.7,1955.4,1.72313984]
[1746702847644,11.14737364,1955.7,1955.6,1.72313984]
[1746702847816,6.034,1955.7,1955.6,1.72313984]
[1746702849708,11.14725867,1955.7,1955.6,1.72313984]
[1746702849922,5.11325867,1955.7,1955.6,1.72313984]
[1746702850108,5.11317326,1955.8,1955.6,1.72313984]
[1746702850807,5.11325867,1955.7,1955.6,1.72313984]
[1746702852358,5.11316966,1955.8,1955.6,1.72313984]
[1746702852555,5.11325867,1955.7,1955.6,1.72313984]
[1746702853881,5.11317233,1955.8,1955.6,1.72313984]
[1746702854213,10.22640807,1955.8,1955.6,1.72313984]
[1746702854413,5.11317233,1955.8,1955.6,1.72313984]
[1746702854617,5.11309452,1955.8,1955.5,0.7811]
[1746702854814,5.11325867,1955.7,1955.6,1.72313984]
[1746702855015,5.11378164,1955.5,1955.4,3.0]
[1746702855551,5.93200802,1955.7,1955.4,4.72313984]
[1746702856051,5.11360682,1955.6,1955.4,4.72313984]
[1746702856217,5.11360682,1955.6,1955.5,0.17669839]
[1746702856429,5.7068275,1955.6,1955.5,0.17669839]
[1746702857655,5.11336353,1955.7,1955.5,0.17669839]
[1746702857862,5.11352014,1955.6,1955.5,0.17669839]
[1746702859442,5.93712014,1955.6,1955.5,0.17669839]
[1746702859833,5.11404316,1955.4,1955.3,6.06841104]
[1746702860061,5.11430471,1955.3,1955.2,1.72313984]
[1746702860776,5.11430471,1955.3,1955.0,5.85920909]
[1746702860777,5.11468787,1955.2,1955.0,5.85920909]
[1746702861131,5.11468787,1955.2,1955.0,5.10200909]
[1746702861347,5.11413285,1955.4,1955.0,10.26804868]
[1746702861552,5.11413285,1955.4,1955.3,1.72313984]
[1746702862275,11.93823236,1955.6,1955.3,1.72313984]
[1746702862434,0.8075,1955.9,1955.5,1.72313984]
[1746702862632,5.11344208,1955.7,1955.5,4.72313984]
[1746702862840,5.11339754,1955.7,1955.5,4.72313984]
[1746702863359,5.11314718,1955.8,1955.5,4.72313984]
[1746702863989,5.79371269,1955.9,1955.6,0.7814]
[1746702864194,5.11286269,1955.9,1955.7,1.72313984]
[1746702864490,5.11299723,1955.8,1955.7,1.72313984]
[1746702865007,6.792,1956.1,1955.7,1.72313984]
[1746702865008,5.11257403,1956.0,1955.7,1.72313984]
[1746702865214,5.112737,1955.9,1955.7,1.72313984]
[1746702865410,5.11299723,1955.8,1955.7,1.72313984]
[1746702865593,5.11325867,1955.7,1955.5,1.72313984]
[1746702866698,6.001,1956.1,1955.5,1.72313984]
[1746702866699,6.7587,1956.1,1955.5,1.72313984]
[1746702867004,5.11292417,1955.9,1955.7,1.72313984]
[1746702867364,6.7587,1956.1,1955.7,1.72313984]
[1746702867566,0.7577,1956.4,1955.9,1.72313984]
[1746702867906,5.86926612,1956.4,1956.2,1.72313984]
[1746702868112,5.11145575,1956.4,1956.2,1.72313984]
[1746702869794,10.22312205,1956.4,1956.0,5.11232451]
[1746702870098,5.11169485,1956.3,1956.0,0.76650183]
[1746702871114,5.11169485,1956.3,1956.1,0.17139249]
[1746702871297,5.11145575,1956.4,1956.1,0.17139249]
[1746702871704,10.22313201,1956.4,1956.1,0.17139249]
[1746702871913,5.11145575,1956.4,1956.1,0.17139249]
[1746702872800,5.11162711,1956.4,1956.1,0.17139249]
[1746702873004,5.11172336,1956.3,1956.1,0.17139249]
[1746702876001,10.2236373,1956.3,1956.1,0.17139249]
[1746702876200,5.11172336,1956.3,1956.1,0.17139249]
[1746702876522,5.11195174,1956.2,1956.1,0.17139249]
[1746702876728,5.11160499,1956.4,1956.1,0.17139249]
[1746702877238,5.11160499,1956.4,1956.1,5.28359996]
[1746702877540,5.11144814,1956.4,1956.1,6.08309996]
[1746702878038,5.11144814,1956.4,1956.1,0.97089249]
[1746702878954,5.11176495,1956.3,1956.1,0.97089249]
[1746702879661,5.11144814,1956.4,1956.1,0.97089249]
[1746702879845,5.11171501,1956.3,1956.1,0.97089249]
[1746702880361,5.11171501,1956.3,1956.1,0.17139249]
[1746702880925,5.11195174,1956.2,1956.1,0.17139249]
[1746702887875,5.92295174,1956.2,1956.1,0.17139249]
[1746702888038,11.88895174,1956.2,1956.1,0.17139249]
[1746702888366,5.11261806,1956.0,1955.7,3.0]
[1746702889176,5.1127407,1955.9,1955.7,3.0]
[1746702889360,5.11263488,1956.0,1955.7,3.0]
[1746702889562,5.11235676,1956.1,1955.7,3.0]
[1746702889863,5.11256054,1956.0,1955.9,1.72534454]
[1746702891585,6.13505227,1956.0,1955.9,1.72534454]
[1746702891882,5.11325867,1955.7,1955.6,1.72534454]
[1746702893271,5.11300449,1955.8,1955.6,1.72534454]
[1746702893854,5.11326607,1955.7,1955.5,3.0]
[1746702894068,5.11326607,1955.7,1955.6,1.72534454]
[1746702894403,5.11326607,1955.7,1955.5,3.0]
[1746702894705,5.11326607,1955.7,1955.6,1.72534454]
[1746702895807,5.11315359,1955.8,1955.6,1.72534454]
[1746702896293,10.2263736,1955.8,1955.6,1.72534454]
[1746702896496,5.11325867,1955.7,1955.6,1.72534454]
[1746702897677,5.11315359,1955.8,1955.6,1.72534454]
[1746702898304,5.11325867,1955.7,1955.6,1.72534454]
[1746702901011,5.11369245,1955.6,1955.5,1.72534454]
[1746702903215,5.11404316,1955.4,1955.3,1.72534454]
[1746702903931,5.11456628,1955.2,1955.1,1.72534454]
[1746702904298,5.11416962,1955.4,1955.1,1.72534454]
[1746702904636,5.11388818,1955.5,1955.3,1.72534454]
[1746702905024,5.11404316,1955.4,1955.3,1.72534454]
[1746702905356,5.11388818,1955.5,1955.3,1.72534454]
[1746702905636,5.11362446,1955.6,1955.3,4.72534454]
[1746702906595,5.11378193,1955.5,1955.3,4.72534454]
[1746702907632,5.11390379,1955.5,1955.3,4.72534454]
[1746702907839,5.11368696,1955.6,1955.3,4.72534454]
[1746702910021,5.11379968,1955.5,1955.3,4.72534454]
[1746702910342,6.95724834,1955.5,1955.1,7.79375558]
[1746702910545,5.11423892,1955.4,1955.1,7.79375558]
[1746702910841,5.11423892,1955.4,1955.3,1.72534454]
[1746702911009,5.11388599,1955.5,1955.3,1.72534454]
[1746702911199,5.11380085,1955.5,1955.3,2.54834454]
[1746702911699,11.0801221,1955.8,1955.4,3.0]
[1746702911901,11.0801221,1955.8,1955.7,1.72534454]
[1746702913404,5.11356135,1955.6,1955.5,1.72534454]
[1746702914502,5.89376135,1955.6,1955.5,1.72534454]
[1746702914736,5.11356135,1955.6,1955.5,1.72534454]
[1746702915109,5.11334994,1955.7,1955.5,1.72534454]
[1746702915312,5.11352014,1955.6,1955.5,1.72534454]
[1746702916133,5.11352014,1955.6,1955.5,1.87291518]
[1746702916636,5.89372014,1955.6,1955.5,0.14757064]
[1746702916940,5.11430471,1955.3,1955.2,1.72534454]
[1746702917142,5.11430471,1955.3,1955.2,1.87390346]
[1746702917725,5.11430471,1955.3,1955.2,0.14855892]
[1746702917926,5.11482788,1955.1,1955.0,1.72534454]
[1746702918133,5.11482788,1955.1,1955.0,1.8746815]
[1746702919027,5.92432788,1955.1,1955.0,0.14933696]
[1746702919436,5.11579224,1954.8,1954.6,1.72534454]
[1746702919634,5.11550011,1954.9,1954.6,1.72534454]
[1746702919835,5.11522265,1955.0,1954.8,1.72534454]
[1746702920321,5.11535116,1954.9,1954.8,1.72534454]
[1746702921653,5.11522265,1955.0,1954.8,1.72534454]
[1746702921862,0.8095,1955.1,1954.9,0.7689]
[1746702921863,5.11494846,1955.1,1954.9,0.7689]
[1746702922036,11.86002883,1955.3,1955.0,1.72534454]
[1746702922037,11.04942883,1955.3,1955.0,1.72534454]
[1746702922224,5.11442883,1955.3,1955.2,1.72534454]
[1746702922717,5.935,1955.4,1955.2,1.72534454]
[1746702922920,5.935,1955.4,1955.2,2.52394454]
[1746702923160,5.11386573,1955.5,1955.2,3.28780928]
[1746702923335,5.11386573,1955.5,1955.4,1.72534454]
[1746702923544,5.11366568,1955.6,1955.4,1.72534454]
[1746702923927,5.11378164,1955.5,1955.4,1.72534454]
[1746702924664,5.11366568,1955.6,1955.4,1.72534454]
[1746702925173,5.11378164,1955.5,1955.4,1.72534454]
[1746702925672,5.11378164,1955.5,1955.2,2.52394454]
[1746702925874,5.89799028,1955.4,1955.1,1.72534454]
[1746702926178,5.11442998,1955.3,1955.1,1.72534454]
[1746702926540,5.11456628,1955.2,1955.1,1.72534454]
[1746702926867,5.11447667,1955.3,1955.1,1.72534454]
[1746702927071,5.11434108,1955.3,1955.1,1.72534454]
[1746702927377,5.11456628,1955.2,1955.1,1.72534454]
[1746702927671,5.89795054,1955.4,1955.1,1.72534454]
[1746702927978,5.1148393,1955.1,1954.9,4.72534454]
[1746702928473,5.1148393,1955.1,1954.9,1.72534454]
[1746702928673,5.11508951,1955.0,1954.9,1.72534454]
[1746702929740,5.9455393,1955.1,1954.7,0.37894914]
[1746702929741,5.11568081,1954.8,1954.7,1.72534454]
[1746702930673,5.11587455,1954.7,1954.6,1.72534454]
[1746702931246,5.11587455,1954.7,1954.6,1.87805311]
[1746702931677,5.11587455,1954.7,1954.6,0.15270857]
[1746702931887,6.13903009,1954.7,1954.6,0.26355142]
[1746702932064,6.13903009,1954.7,1954.4,3.8234]
[1746702932381,5.11587455,1954.7,1954.5,0.26492849]
[1746702932546,5.8960132,1954.8,1954.5,3.58253518]
[1746702932547,5.1156132,1954.8,1954.5,3.58253518]
[1746702933985,5.11561285,1954.8,1954.5,0.26492849]
[1746702934165,5.11613629,1954.6,1954.5,0.26492849]
[1746702934484,11.05170489,1954.8,1954.5,3.31760669]
[1746702934682,11.05170489,1954.8,1954.5,3.56346896]
[1746702935186,5.11595928,1954.7,1954.5,3.56346896]
[1746702935873,11.05174853,1954.8,1954.6,0.7938]
[1746702936189,5.11522684,1955.0,1954.7,0.24507241]
[1746702936384,11.84750215,1955.2,1954.8,3.31760669]
[1746702936550,5.11521064,1955.0,1954.9,0.24421606]
[1746702936755,5.11521064,1955.0,1954.7,6.31760669]
[1746702936990,5.11521064,1955.0,1954.8,0.24461089]
[1746702938190,5.11491123,1955.1,1954.8,0.24461089]
[1746702938351,11.84750464,1955.2,1954.8,0.24461089]
[1746702938352,5.1150932,1955.0,1954.8,0.24461089]
[1746702939188,5.0650932,1955.0,1954.8,0.24461089]
[1746702940676,5.11484269,1955.1,1954.8,0.24461089]
[1746702940886,11.05179226,1955.2,1954.9,0.8314]
[1746702941094,5.11439618,1955.3,1955.0,3.31760669]
[1746702941256,5.11439618,1955.3,1955.0,3.56142796]
[1746702942295,5.11468076,1955.2,1955.0,3.56142796]
[1746702942455,5.11482788,1955.1,1955.0,3.56142796]
[1746702942863,5.93812788,1955.1,1955.0,0.24382127]
[1746702943279,5.11543061,1954.9,1954.6,0.7939]
[1746702943684,5.11543061,1954.9,1954.7,0.2442507]
[1746702944077,10.23101479,1954.9,1954.7,0.2442507]
[1746702944284,5.11561285,1954.8,1954.7,0.2442507]
[1746702944783,5.11543061,1954.9,1954.7,0.2442507]
[1746702944784,5.1155145,1954.9,1954.7,0.2442507]
[1746702944985,5.11525819,1955.0,1954.7,0.2442507]
[1746702945184,5.11525819,1955.0,1954.7,0.86479416]
[1746702945381,10.23060792,1955.0,1954.7,0.86479416]
[1746702945582,5.11525819,1955.0,1954.7,0.86479416]
[1746702945787,5.11495329,1955.1,1954.7,7.18240085]
[1746702945986,5.11495329,1955.1,1954.8,0.05115307]
[1746702946207,5.11495329,1955.1,1954.9,0.24346099]
[1746702946513,5.11495329,1955.1,1954.8,1.28607415]
[1746702946696,5.11495329,1955.1,1954.9,0.24319441]
[1746702946887,5.11495329,1955.1,1954.8,1.23492108]
[1746702947223,5.11495329,1955.1,1954.9,0.24319441]
[1746702947592,5.1146457,1955.2,1954.8,6.35047883]
[1746702947910,5.11485623,1955.1,1954.9,0.87824229]
[1746702948081,5.11485623,1955.1,1954.9,0.24319441]
[1746702948414,5.11502486,1955.1,1954.8,1.23492108]
[1746702948612,5.11502486,1955.1,1955.0,0.24279962]
[1746702948787,5.11502486,1955.1,1954.9,0.24319441]
[1746702948992,5.11502486,1955.1,1954.8,1.23492108]
[1746702949189,10.23009265,1955.1,1954.9,0.24319441]
[1746702949386,5.11502486,1955.1,1954.8,1.23492108]
[1746702949575,5.11502486,1955.1,1954.9,0.24319441]
[1746702949772,10.23007807,1955.1,1954.8,1.23492108]
[1746702949989,10.23007807,1955.1,1954.9,0.24319441]
[1746702950210,10.23007807,1955.1,1954.8,1.23492108]
[1746702950373,5.11502486,1955.1,1955.0,0.24279962]
[1746702950580,5.11467126,1955.2,1954.8,1.23492108]
[1746702950801,5.1149584,1955.1,1954.9,0.24319441]
[1746702950973,5.11470843,1955.2,1954.8,6.40159424]
[1746702951178,5.11470843,1955.2,1954.9,0.88335383]
[1746702951381,5.11482995,1955.1,1954.9,0.88335383]
[1746702951700,5.937,1955.3,1955.1,3.0]
[1746702951877,5.1140639,1955.4,1955.2,0.24177783]
[1746702952078,5.1140639,1955.4,1955.1,3.0]
[1746702952289,5.1140639,1955.4,1955.2,0.24177783]
[1746702952489,5.1140639,1955.4,1955.1,4.82917241]
[1746702952715,5.1140639,1955.4,1955.2,0.24177783]
[1746702952914,5.1140639,1955.4,1955.1,4.82917241]
[1746702953116,5.1140639,1955.4,1955.2,0.24177783]
[1746702953413,5.1140639,1955.4,1955.1,4.82917241]
[1746702953711,5.1140639,1955.4,1955.3,1.72645472]
[1746702954018,5.1140639,1955.4,1955.3,1.96783789]
[1746702954519,23.5328873,1955.5,1955.3,1.96783789]
[1746702954880,18.419,1955.5,1955.3,1.96783789]
[1746702955080,16.13138163,1955.6,1955.3,3.4844776]
[1746702955282,11.01765171,1955.6,1955.5,1.72645472]
[1746702955579,11.01752014,1955.6,1955.5,1.9670487]
[1746702956027,11.82262014,1955.6,1955.5,0.24059398]
[1746702956321,13.51621431,1955.6,1955.5,0.24059398]
[1746702956512,5.11401007,1955.5,1955.1,5.53485472]
[1746702956700,6.7091,1955.6,1955.3,1.72645472]
[1746702956909,5.11383306,1955.5,1955.3,1.72645472]
[1746702957305,10.22833636,1955.4,1955.1,5.53485472]
[1746702957508,5.11433943,1955.3,1955.1,5.53485472]
[1746702958220,5.93370444,1955.5,1955.1,5.53485472]
[1746702958410,5.11418822,1955.4,1955.1,3.8084]
[1746702958718,5.11418822,1955.4,1955.3,1.72645472]
[1746702959229,5.11438396,1955.3,1955.2,1.72645472]
[1746702959689,5.11418822,1955.4,1955.2,1.72645472]
[1746702959886,10.22781745,1955.5,1955.2,1.72645472]
[1746702960207,5.11378395,1955.5,1955.4,1.72645472]
[1746702961019,11.01762348,1955.6,1955.4,1.72645472]
[1746702961188,11.0176179,1955.6,1955.4,1.96744327]
[1746702961525,5.11340134,1955.7,1955.4,2.75474327]
[1746702961700,5.11340134,1955.7,1955.6,1.72645472]
[1746702961905,5.11340134,1955.7,1955.6,1.96578816]
[1746702962534,5.11325867,1955.7,1955.6,1.96578816]
[1746702965902,5.11325867,1955.7,1955.6,0.23933344]
[1746702966246,5.11325867,1955.7,1955.3,1.72645472]
[1746702966247,5.11404316,1955.4,1955.3,1.72645472]
[1746702966422,5.11456628,1955.2,1955.1,1.72645472]
[1746702968210,5.11456628,1955.2,1955.1,2.11963096]
[1746702970166,5.11452793,1955.3,1955.1,2.11963096]
[1746702971242,5.11456628,1955.2,1955.1,2.11963096]
[1746702971449,5.1144322,1955.3,1955.1,2.11963096]
[1746702971862,11.02705559,1955.4,1955.1,1.72645472]
[1746702972061,5.11362543,1955.6,1955.3,2.51255472]
[1746702972262,5.1133996,1955.7,1955.5,1.72645472]
[1746702972462,5.11352014,1955.6,1955.5,1.72645472]
[1746702974076,5.11311851,1955.8,1955.5,1.72645472]
[1746702974570,5.11331763,1955.7,1955.5,2.10510577]
[1746702974969,5.11311851,1955.8,1955.5,2.10510577]
[1746702975172,5.11311851,1955.8,1955.7,1.72645472]
[1746702975475,11.01586529,1955.9,1955.7,1.72645472]
[1746702975968,5.11299723,1955.8,1955.7,1.72645472]
[1746702976137,5.11299723,1955.8,1955.7,1.96313277]
[1746702978166,5.903,1955.9,1955.7,1.96313277]
[1746702978566,10.98738348,1956.1,1955.7,7.07635969]
[1746702978773,10.98738348,1956.1,1956.0,1.72645472]
[1746702979082,10.98738348,1956.1,1956.0,1.96209364]
[1746702980572,10.98738348,1956.1,1956.0,0.23563892]
[1746702980783,5.11249685,1956.0,1955.8,1.72645472]
[1746702980988,5.11249685,1956.0,1955.9,0.23595584]
[1746702981288,5.11249685,1956.0,1955.8,1.72645472]
[1746702981586,10.98738348,1956.1,1955.9,0.23595584]
[1746702981740,10.98738348,1956.1,1955.8,1.72645472]
[1746702981945,5.11250035,1956.0,1955.9,0.23595584]
[1746702982184,5.11250035,1956.0,1955.8,1.72645472]
[1746702982391,5.11250035,1956.0,1955.9,0.23595584]
[1746702982584,5.11250035,1956.0,1955.8,1.72645472]
[1746702982784,5.11250035,1956.0,1955.9,0.23595584]
[1746702982994,5.11250035,1956.0,1955.8,1.72645472]
[1746702983153,5.11250035,1956.0,1955.9,0.23595584]
[1746702983359,5.11250035,1956.0,1955.8,1.72645472]
[1746702983588,5.11250035,1956.0,1955.9,0.23595584]
[1746702983792,5.11250035,1956.0,1955.8,1.72645472]
[1746702984159,10.98730646,1956.1,1955.9,1.04197934]
[1746702984503,5.11096633,1956.6,1956.2,0.807]
[1746702984659,5.11082015,1956.7,1956.5,1.72645472]
[1746702984865,5.11090667,1956.6,1956.5,1.72645472]
[1746702985906,5.11078455,1956.7,1956.5,1.72645472]
[1746702986395,5.11078455,1956.7,1956.5,2.19910019]
[1746702986803,5.11047611,1956.8,1956.5,2.19910019]
[1746702987015,5.11047611,1956.8,1956.7,1.72645472]
[1746702987169,5.11069337,1956.7,1956.5,2.97700019]
[1746702988106,5.11069337,1956.7,1956.5,3.36853995]
[1746702988404,5.11069337,1956.7,1956.6,0.336854]
[1746702988601,5.874,1956.9,1956.6,0.336854]
[1746702988904,5.874,1956.9,1956.7,1.72645472]
[1746702989071,10.98423428,1956.9,1956.7,1.72645472]
[1746702989979,5.874,1956.9,1956.7,1.72645472]
[1746702990184,10.98414849,1956.9,1956.7,1.72645472]
[1746702991413,5.1103843,1956.8,1956.7,1.72645472]
[1746702991581,5.1103843,1956.8,1956.7,2.23278559]
[1746702993616,10.98414849,1956.9,1956.7,2.23278559]
[1746702993822,5.874,1956.9,1956.7,2.23278559]
[1746702994239,23.52472557,1957.1,1956.7,10.34330087]
[1746702994450,23.52472557,1957.1,1956.9,1.72645472]
[1746702994597,5.10972557,1957.1,1956.9,1.72645472]
[1746702994941,5.10994631,1957.0,1956.8,1.81853009]
[1746702996432,10.98142009,1957.2,1956.9,1.72645472]
[1746702996623,10.98142009,1957.2,1957.1,1.72645472]
[1746702998137,5.10975536,1957.1,1956.9,4.72645472]
[1746702998330,5.10986203,1957.0,1956.9,2.3809532]
[1746702999517,5.10971918,1957.1,1956.9,2.3809532]
[1746703000016,10.98149287,1957.2,1956.9,2.3809532]
[1746703000017,5.10986203,1957.0,1956.9,2.3809532]
[1746703000449,5.10976135,1957.1,1956.9,2.3809532]
[1746703001655,10.98147792,1957.2,1956.9,2.3809532]
[1746703001840,5.10979294,1957.1,1956.9,2.3809532]
[1746703002040,10.98148826,1957.2,1956.9,2.3809532]
[1746703002233,5.872,1957.2,1956.9,2.3809532]
[1746703002436,5.10960841,1957.1,1956.9,2.3809532]
[1746703004016,5.10986203,1957.0,1956.9,2.3809532]
[1746703004438,5.10975222,1957.1,1956.9,2.3809532]
[1746703006250,5.10975222,1957.1,1957.0,0.22495951]
[1746703006548,5.10975222,1957.1,1957.0,0.48555078]
[1746703008658,10.98147453,1957.2,1957.0,0.48555078]
[1746703009165,10.98141388,1957.2,1957.0,0.48555078]
[1746703009367,10.2189723,1957.2,1957.0,0.48555078]
[1746703009941,5.10941388,1957.2,1957.0,0.48555078]
[1746703011636,5.10908072,1957.3,1957.0,0.48555078]
[1746703011935,10.21838095,1957.3,1957.0,0.48555078]
[1746703012135,5.10935307,1957.2,1957.0,0.48555078]
[1746703012872,5.10960094,1957.1,1957.0,0.48555078]
[1746703013057,5.10960094,1957.1,1957.0,0.22495951]
[1746703013245,5.93910094,1957.1,1957.0,0.22495951]
[1746703013451,5.93910094,1957.1,1956.7,1.72645472]
[1746703013638,5.10995149,1957.0,1956.8,3.22514464]
[1746703013959,0.8295,1957.1,1956.8,3.22514464]
[1746703013960,5.93928126,1957.1,1956.8,3.22514464]
[1746703014488,5.10987646,1957.0,1956.8,0.22514464]
[1746703014671,5.93925825,1957.1,1956.8,3.22514464]
[1746703014871,5.10991048,1957.0,1956.8,3.22514464]
[1746703015190,10.22002829,1957.0,1956.8,0.22514464]
[1746703015368,5.10991048,1957.0,1956.8,0.22514464]
[1746703015790,10.2200274,1957.0,1956.8,0.22514464]
[1746703016302,5.11012315,1956.9,1956.8,0.22514464]
[1746703016811,5.10991048,1957.0,1956.8,0.22514464]
[1746703016812,5.11003475,1957.0,1956.8,0.22514464]
[1746703017907,10.22013021,1957.0,1956.8,0.22514464]
[1746703018213,5.11012315,1956.9,1956.8,0.22514464]
[1746703019580,0.8295,1957.1,1956.5,5.11799448]
[1746703019764,5.11012315,1956.9,1956.8,0.22588725]
[1746703019965,5.11044568,1956.8,1956.5,5.11799448]
[1746703020495,11.00338338,1956.8,1956.5,5.11799448]
[1746703020662,5.89274568,1956.8,1956.5,5.11799448]
[1746703020865,5.11025041,1956.9,1956.5,11.33413571]
[1746703021076,5.8922821,1957.0,1956.7,1.72645472]
[1746703021364,6.6233,1957.2,1956.8,0.22596461]
[1746703021563,5.10977334,1957.1,1956.8,0.22596461]
[1746703022204,5.10988621,1957.0,1956.8,0.22596461]
[1746703023404,5.10977334,1957.1,1956.8,5.33633709]
[1746703023610,5.10977334,1957.1,1956.9,1.72645472]
[1746703023812,6.6233,1957.2,1956.8,0.22596461]
[1746703024001,5.11012315,1956.9,1956.7,1.72645472]
[1746703024184,5.11064547,1956.7,1956.5,2.94659448]
[1746703024389,5.11064547,1956.7,1956.5,2.11799448]
[1746703024791,5.91854167,1956.8,1956.5,2.11799448]
[1746703025276,11.02914207,1956.8,1956.5,2.11799448]
[1746703025477,0.7903,1957.1,1956.7,1.72645472]
[1746703025798,11.7403136,1957.4,1957.0,1.72645472]
[1746703026112,5.10909007,1957.3,1957.0,1.72645472]
[1746703026418,11.7403136,1957.4,1957.0,6.83613421]
[1746703026419,11.74027127,1957.4,1957.0,6.83613421]
[1746703026622,6.6313,1957.6,1957.3,5.10892308]
[1746703026788,10.94931094,1957.6,1957.4,1.72645472]
[1746703027179,16.05782235,1957.6,1957.4,1.72645472]
[1746703027489,5.10899019,1957.4,1957.2,1.72645472]
[1746703028004,5.8989772,1957.5,1957.2,1.72645472]
[1746703028413,5.10890019,1957.4,1957.2,1.72645472]
[1746703028601,5.8989772,1957.5,1957.2,1.72645472]
[1746703028808,5.8989772,1957.5,1957.4,1.72645472]
[1746703029621,10.9494376,1957.6,1957.4,1.72645472]
[1746703029923,5.10855683,1957.5,1957.4,3.3071689]
[1746703032500,7.50375627,1957.5,1957.4,3.3071689]
[1746703032826,5.841,1957.6,1957.4,3.3071689]
[1746703033623,10.94939578,1957.6,1957.4,3.3071689]
[1746703035129,5.841,1957.6,1957.4,3.3071689]
[1746703036094,5.841,1957.6,1957.5,0.22101489]
[1746703036733,23.51654924,1957.9,1957.6,5.10819523]
[1746703036895,10.94734785,1958.0,1957.7,3.81798842]
[1746703037092,10.94734785,1958.0,1957.8,0.21890541]
[1746703037093,0.7685,1957.9,1957.8,0.21890541]
[1746703037435,5.10829587,1957.6,1957.5,3.3071689]
[1746703037746,5.10829587,1957.6,1957.5,3.52728769]
[1746703038044,5.10829587,1957.6,1957.5,0.22011879]
[1746703038400,5.10860615,1957.5,1957.2,7.0939689]
[1746703038588,5.10860615,1957.5,1957.3,0.70939689]
[1746703038793,5.10839371,1957.6,1957.3,0.70939689]
[1746703039041,5.10839371,1957.6,1957.5,3.3071689]
[1746703039421,5.10829587,1957.6,1957.5,3.3071689]
[1746703040426,5.10864807,1957.5,1957.3,4.01656579]
[1746703041341,10.21746313,1957.5,1957.3,4.01656579]
[1746703041532,5.10864807,1957.5,1957.3,3.3071689]
[1746703043450,5.1084461,1957.6,1957.3,3.3071689]
[1746703043655,5.1084461,1957.6,1957.3,4.0575689]
[1746703043855,10.21695872,1957.6,1957.3,4.0575689]
[1746703044047,5.10855831,1957.5,1957.3,4.0575689]
[1746703044241,5.10837672,1957.6,1957.4,0.40575689]
[1746703044465,11.72725165,1957.7,1957.4,0.40575689]
[1746703044652,5.10831175,1957.6,1957.4,0.40575689]
[1746703045959,5.9159397,1957.9,1957.4,5.51448264]
[1746703046270,5.10802908,1957.8,1957.6,3.3071689]
[1746703048868,5.10777403,1957.8,1957.6,3.3071689]
[1746703049179,5.10777403,1957.8,1957.6,3.67588308]
[1746703049569,5.1076627,1957.9,1957.6,3.67588308]
[1746703049774,5.1076627,1957.9,1957.8,1.72183341]
[1746703051179,5.1076627,1957.9,1957.8,1.94032836]
[1746703056975,5.8860627,1957.9,1957.8,1.94032836]
[1746703061414,5.1076627,1957.9,1957.8,1.94032836]
[1746703063822,5.809,1958.1,1957.8,1.94032836]
[1746703063971,18.4,1958.7,1957.8,1.94032836]
[1746703063972,5.10694428,1958.2,1958.0,1.72183341]
[1746703064166,5.10673067,1958.2,1958.1,1.72183341]
[1746703064387,10.91459793,1958.3,1958.1,1.929745]
[1746703064587,5.808,1958.3,1958.1,2.728645]
[1746703065007,5.10621626,1958.4,1958.1,7.83563191]
[1746703065316,5.10621626,1958.4,1958.3,1.72183341]
[1746703065521,5.10621626,1958.4,1958.3,1.92867101]
[1746703065721,5.10621626,1958.4,1958.3,0.2068376]
[1746703065927,5.10671325,1958.3,1957.9,0.83626987]
[1746703066111,5.10635841,1958.4,1958.3,1.72183341]
[1746703066112,5.10635516,1958.4,1958.3,1.72183341]
[1746703066284,5.10635516,1958.4,1958.3,1.92766675]
[1746703067831,5.10635516,1958.4,1958.3,0.20583334]
[1746703068334,10.91415607,1958.5,1958.3,0.95823334]
[1746703068630,5.10620915,1958.4,1958.3,1.92766675]
[1746703071522,5.10620915,1958.4,1958.3,0.20583334]
[1746703071830,5.10620915,1958.4,1958.0,6.08]
[1746703071831,5.10699147,1958.1,1958.0,7.80183341]
[1746703072541,5.92559147,1958.1,1958.0,6.08]
[1746703073047,5.92559147,1958.1,1957.8,1.72183341]
[1746703073048,5.10751315,1957.9,1957.8,1.72183341]
[1746703073200,5.10730324,1958.0,1957.8,1.72183341]
[1746703073201,5.10743029,1958.0,1957.8,1.72183341]
[1746703073402,5.92573003,1958.1,1957.8,1.72183341]
[1746703073625,5.10713003,1958.1,1958.0,1.72183341]
[1746703075819,5.10735239,1958.0,1957.8,1.72183341]
[1746703076220,5.10705938,1958.1,1957.8,1.72183341]
[1746703077218,5.10734599,1958.0,1957.8,1.72183341]
[1746703077418,5.10751315,1957.9,1957.8,1.72183341]
[1746703079546,5.10799192,1957.8,1957.6,5.48193341]
[1746703079753,0.7909,1958.0,1957.5,2.10180631]
[1746703079754,5.10829587,1957.6,1957.5,2.10180631]
[1746703079950,5.10818893,1957.7,1957.5,2.10180631]
[1746703080648,5.10790278,1957.8,1957.5,2.10180631]
[1746703080947,1.44779,1958.0,1957.5,2.10180631]
[1746703080948,5.10736336,1958.0,1957.7,2.54153341]
[1746703081360,5.107369,1958.0,1957.9,1.72183341]
[1746703081851,5.107369,1958.0,1957.9,1.89761047]
[1746703084577,10.88515576,1958.1,1957.9,1.89761047]
[1746703085377,10.88515576,1958.1,1957.9,2.38737152]
[1746703085777,5.10725229,1958.0,1957.9,2.38737152]
[1746703086278,10.88510311,1958.1,1957.9,2.38737152]
[1746703087853,5.10725229,1958.0,1957.9,2.38737152]
[1746703089764,5.89385229,1958.0,1957.9,0.17577706]
[1746703090154,5.10761257,1957.9,1957.7,4.72183341]
[1746703090354,5.10761257,1957.9,1957.8,0.16293504]
[1746703094398,5.10855683,1957.5,1957.4,3.0]
[1746703096263,5.10855683,1957.5,1957.4,3.166074]